[Event "16th EWICC 2015"]
[Site "Kutaisi"]
[Date "2015.06.02"]
[Round "8"]
[White "Gunina, Valentina"]
[Black "Stefanova, Antoaneta"]
[Result "0-1"]
[ECO "D10"]
[WhiteElo "2535"]
[BlackElo "2512"]
[Annotator "Robot 11"]
[PlyCount "195"]
[EventDate "2015.??.??"]
[EventCountry "GEO"]
[TimeControl "900+10"]

1. d4 {[%emt 0:00:02]} d5 {[%emt 0:00:01]} 2. c4 {[%emt 0:00:02]} c6 {[%emt 0:
00:01]} 3. Nc3 {[%emt 0:00:01]} Nf6 {[%emt 0:00:05]} 4. e3 {[%emt 0:00:04]} e6
{[%emt 0:00:16]} 5. Qc2 {[%emt 0:00:09]} a6 {[%emt 0:00:21]} 6. Nf3 {[%emt 0:
00:18]} c5 {[%emt 0:00:02]} 7. dxc5 {[%emt 0:00:13]} Bxc5 {[%emt 0:00:38]} 8.
a3 {[%emt 0:00:09]} O-O {[%emt 0:01:38]} 9. b4 {[%emt 0:00:07]} Be7 {[%emt 0:
00:06]} 10. Bb2 {[%emt 0:00:08]} dxc4 {[%emt 0:00:49]} 11. Bxc4 {[%emt 0:00:02]
} b5 {[%emt 0:00:07]} 12. Bd3 {[%emt 0:00:16]} Bb7 {[%emt 0:00:23]} 13. Ng5 {
[%emt 0:00:14]} h6 {[%emt 0:00:20]} 14. Nge4 {[%emt 0:00:12]} Nbd7 {[%emt 0:00:
15]} 15. O-O {[%emt 0:00:55]} Ne5 {[%emt 0:01:51]} 16. Nxf6+ {[%emt 0:00:15]}
Bxf6 {[%emt 0:00:04]} 17. Be4 {[%emt 0:00:02]} Nc6 {[%emt 0:04:54]} 18. Bf3 {
[%emt 0:02:55]} Rc8 {[%emt 0:00:46]} 19. Qb3 {[%emt 0:00:04]} Qc7 {[%emt 0:00:
28]} 20. Rac1 {[%emt 0:02:17]} Qb8 {[%emt 0:00:02]} 21. Ne2 {[%emt 0:01:16]}
Ne5 {[%emt 0:00:32]} 22. Bxb7 {[%emt 0:00:03]} Qxb7 {[%emt 0:00:01]} 23. Nf4 {
[%emt 0:00:03]} Nd7 {[%emt 0:01:52]} 24. Nh5 {[%emt 0:00:18]} Bxb2 {[%emt 0:00:
09]} 25. Qxb2 {[%emt 0:00:02]} e5 {[%emt 0:00:20]} 26. Rcd1 {[%emt 0:00:02]}
Qc7 {[%emt 0:00:22]} 27. f4 {[%emt 0:00:26]} Nb6 {[%emt 0:00:28]} 28. Qf2 {
[%emt 0:00:16]} exf4 {[%emt 0:00:37]} 29. exf4 {[%emt 0:00:09]} Nc4 {[%emt 0:
00:03]} 30. f5 {[%emt 0:01:08]} Rfd8 {[%emt 0:00:26]} 31. Kh1 {[%emt 0:00:34]}
Rxd1 {[%emt 0:00:11]} 32. Rxd1 {[%emt 0:00:01]} Qe5 {[%emt 0:00:10]} 33. h3 {
[%emt 0:00:39]} Re8 {[%emt 0:00:12]} 34. Qf3 {[%emt 0:00:29]} Qe2 {[%emt 0:00:
58]} 35. Qxe2 {[%emt 0:00:43]} Rxe2 {[%emt 0:00:01]} 36. Rd8+ Kh7 37. Rd7 {
[%emt 0:00:09]} Kg8 {[%emt 0:00:11]} 38. f6 {[%emt 0:00:07]} gxf6 {[%emt 0:00:
26]} 39. Nxf6+ {[%emt 0:00:33]} Kg7 {[%emt 0:00:03]} 40. Nh5+ {[%emt 0:00:21]}
Kf8 {[%emt 0:00:08]} 41. Ra7 {[%emt 0:00:05]} Re6 {[%emt 0:00:10]} 42. Ra8+ {
[%emt 0:00:05]} Ke7 {[%emt 0:00:01]} 43. Ng7 {[%emt 0:00:12]} Rf6 {[%emt 0:00:
16]} 44. g4 {[%emt 0:00:38]} Nxa3 {[%emt 0:00:19]} 45. Ra7+ {[%emt 0:00:27]}
Kf8 {[%emt 0:00:43]} 46. Nf5 {[%emt 0:00:12]} Kg8 {[%emt 0:00:04]} 47. Rc7 {
[%emt 0:00:34]} Nc4 {[%emt 0:00:21]} 48. Kg2 {[%emt 0:00:13]} Ne5 {[%emt 0:00:
14]} 49. Kg3 {[%emt 0:00:39]} Nd3 {[%emt 0:00:06]} 50. Ne7+ {[%emt 0:00:35]}
Kg7 {[%emt 0:00:02]} 51. Nd5 {[%emt 0:00:25]} Rd6 {[%emt 0:00:18]} 52. Ne7 {
[%emt 0:00:04]} Re6 {[%emt 0:00:17]} 53. Nf5+ {[%emt 0:00:30]} Kg6 {[%emt 0:00:
10]} 54. Rc8 {[%emt 0:00:59]} Kh7 {[%emt 0:00:14]} 55. Rc7 {[%emt 0:00:30]} Rf6
{[%emt 0:00:01]} 56. h4 {[%emt 0:00:41]} Nxb4 {[%emt 0:00:03]} 57. h5 {[%emt 0:
00:01]} Nd3 {[%emt 0:00:20]} 58. Kf3 {[%emt 0:00:31]} b4 {[%emt 0:00:19]} 59.
Ke4 {[%emt 0:00:12]} Nf2+ {[%emt 0:00:02]} 60. Kf3 {[%emt 0:00:04]} Nh3 {[%emt
0:00:02]} 61. Rb7 {[%emt 0:00:10]} a5 {[%emt 0:00:03]} 62. Ke3 {[%emt 0:00:22]}
Ng5 {[%emt 0:00:05]} 63. Kd3 {[%emt 0:00:13]} Re6 {[%emt 0:00:15]} 64. Ne3 {
[%emt 0:00:16]} Rd6+ {[%emt 0:00:25]} 65. Kc4 {[%emt 0:00:15]} Re6 {[%emt 0:00:
02]} 66. Kd3 {[%emt 0:00:27]} Re5 {[%emt 0:00:10]} 67. Nf5 {[%emt 0:00:21]} Rc5
{[%emt 0:00:13]} 68. Kd4 {[%emt 0:00:06]} Rc6 {[%emt 0:00:23]} 69. Kd5 {[%emt
0:00:17]} Rf6 {[%emt 0:00:12]} 70. Kc4 {[%emt 0:00:06]} Re6 {[%emt 0:00:03]}
71. Kb5 {[%emt 0:00:07]} Re5+ {[%emt 0:00:02]} 72. Ka4 {[%emt 0:00:02]} Re4 {
[%emt 0:00:03]} 73. Kxa5 {[%emt 0:00:13]} Rxg4 {[%emt 0:00:04]} 74. Rb6 {[%emt
0:00:03]} Ne6 {[%emt 0:00:06]} 75. Rb7 {[%emt 0:00:04]} Nd8 {[%emt 0:00:24]}
76. Rb6 {[%emt 0:00:22]} Ne6 {[%emt 0:00:20]} 77. Ka4 {[%emt 0:00:24]} Rg5 {
[%emt 0:00:14]} 78. Nd6 {[%emt 0:00:05]} b3 {[%emt 0:00:17]} 79. Kxb3 {[%emt 0:
00:15]} Kg7 {[%emt 0:00:07]} 80. Kc4 {[%emt 0:00:14]} Rxh5 {[%emt 0:00:03]} 81.
Rb7 {[%emt 0:00:04]} Ng5 {[%emt 0:00:03]} 82. Nf5+ {[%emt 0:00:12]} Kf6 {[%emt
0:00:08]} 83. Nd6 {[%emt 0:00:03]} Rh4+ {[%emt 0:00:06]} 84. Kd5 {[%emt 0:00:
03]} Kg6 {[%emt 0:00:13]} 85. Rb6 {[%emt 0:00:04]} f6 {[%emt 0:00:08]} 86. Rb8
{[%emt 0:00:03]} Rf4 {[%emt 0:00:09]} 87. Rg8+ {[%emt 0:00:05]} Kh7 {[%emt 0:
00:05]} 88. Ra8 {[%emt 0:00:18]} h5 {[%emt 0:00:10]} 89. Ra7+ {[%emt 0:00:12]}
Kg6 {[%emt 0:00:04]} 90. Nc4 {[%emt 0:00:31]} h4 {[%emt 0:00:17]} 91. Ne3 {
[%emt 0:00:18]} h3 {[%emt 0:00:04]} 92. Ra2 {[%emt 0:00:03]} Kh5 {[%emt 0:00:
11]} 93. Kd6 {[%emt 0:00:26]} Kh4 {[%emt 0:00:15]} 94. Nd5 {[%emt 0:00:01]} Rf3
{[%emt 0:00:15]} 95. Ke7 {[%emt 0:00:18]} f5 {[%emt 0:00:22]} 96. Kf6 {[%emt 0:
00:02]} Ne4+ {[%emt 0:00:06]} 97. Ke5 {[%emt 0:00:08]} Nf2 {[%emt 0:00:09]} 98.
Nf6 {[%emt 0:00:46]} 0-1

[Event "16th EWICC 2015"]
[Site "Kutaisi"]
[Date "2015.06.02"]
[Round "8"]
[White "Gvetadze, Sofio"]
[Black "Gaponenko, Inna"]
[Result "1/2-1/2"]
[ECO "A05"]
[WhiteElo "2319"]
[BlackElo "2391"]
[Annotator "Robot 11"]
[PlyCount "39"]
[EventDate "2015.??.??"]
[EventCountry "GEO"]
[TimeControl "900+10"]

1. Nf3 {[%emt 0:00:03]} Nf6 {[%emt 0:00:00]} 2. g3 {[%emt 0:00:01]} g6 {[%emt
0:00:02]} 3. Bg2 {[%emt 0:00:01]} c5 {[%emt 0:00:02]} 4. O-O {[%emt 0:00:02]}
Bg7 {[%emt 0:00:00]} 5. d3 {[%emt 0:00:05]} d5 {[%emt 0:00:06]} 6. Nbd2 {[%emt
0:00:02]} Nc6 {[%emt 0:00:04]} 7. e4 {[%emt 0:00:06]} e6 {[%emt 0:00:02]} 8. c3
{[%emt 0:00:38]} O-O {[%emt 0:00:21]} 9. e5 {[%emt 0:01:23]} Nd7 {[%emt 0:00:
01]} 10. d4 {[%emt 0:00:01]} f6 {[%emt 0:03:11]} 11. exf6 {[%emt 0:00:11]} Bxf6
{[%emt 0:00:01]} 12. Nb3 {[%emt 0:00:16]} c4 {[%emt 0:00:01]} 13. Nbd2 {[%emt
0:00:03]} e5 {[%emt 0:00:07]} 14. dxe5 {[%emt 0:00:48]} Ndxe5 {[%emt 0:00:01]}
15. Nxe5 {[%emt 0:00:19]} Nxe5 {[%emt 0:00:15]} 16. Nf3 {[%emt 0:01:18]} Bg4 {
[%emt 0:00:47]} 17. h3 {[%emt 0:00:23]} Bxf3 {[%emt 0:05:07]} 18. Bxf3 {[%emt
0:00:01]} Nxf3+ {[%emt 0:00:01]} 19. Qxf3 {[%emt 0:00:02]} Bg7 {[%emt 0:00:00]}
20. Qg4 {[%emt 0:00:28]} 1/2-1/2

[Event "16th EWICC 2015"]
[Site "Kutaisi"]
[Date "2015.06.02"]
[Round "8"]
[White "Jalaghonia, Nino"]
[Black "Giorgadze, Elene"]
[Result "1-0"]
[ECO "A36"]
[WhiteElo "1865"]
[BlackElo "1185"]
[Annotator "Robot 11"]
[PlyCount "71"]
[EventDate "2015.??.??"]
[EventCountry "GEO"]
[TimeControl "900+10"]

1. c4 {[%emt 0:00:02]} c5 {[%emt 0:00:11]} 2. Nc3 {[%emt 0:00:01]} Nc6 {[%emt
0:00:13]} 3. g3 {[%emt 0:00:03]} Nf6 {[%emt 0:00:13]} 4. Bg2 {[%emt 0:00:01]}
d6 {[%emt 0:00:03]} 5. d3 {[%emt 0:00:01]} Bd7 {[%emt 0:00:10]} 6. e4 {[%emt 0:
00:02]} Qc7 {[%emt 0:00:19]} 7. Nge2 {[%emt 0:00:07]} g6 {[%emt 0:00:19]} 8. h3
{[%emt 0:00:16]} Bg7 {[%emt 0:00:15]} 9. Be3 {[%emt 0:00:02]} O-O {[%emt 0:00:
21]} 10. O-O {[%emt 0:00:23]} e6 {[%emt 0:00:07]} 11. Rb1 {[%emt 0:00:35]} Ne7
{[%emt 0:01:54]} 12. Qd2 {[%emt 0:00:25]} Bh8 {[%emt 0:00:30]} 13. f4 {[%emt 0:
00:07]} Nc6 {[%emt 0:00:34]} 14. g4 {[%emt 0:00:37]} e5 {[%emt 0:00:16]} 15. g5
{[%emt 0:00:58]} Ne8 {[%emt 0:00:22]} 16. f5 {[%emt 0:00:57]} f6 {[%emt 0:01:
00]} 17. Ng3 {[%emt 0:00:56]} Nd4 {[%emt 0:00:23]} 18. Nd5 {[%emt 0:00:54]} Qd8
{[%emt 0:00:28]} 19. gxf6 {[%emt 0:01:07]} Nxf6 {[%emt 0:00:19]} 20. fxg6 {
[%emt 0:00:36]} hxg6 {[%emt 0:00:16]} 21. Bxd4 {[%emt 0:02:19]} cxd4 {[%emt 0:
00:21]} 22. Qg5 {[%emt 0:00:57]} Be8 {[%emt 0:01:50]} 23. Qh4 {[%emt 0:01:19]}
Nxd5 {[%emt 0:00:42]} 24. Rxf8+ {[%emt 0:00:08]} Kxf8 {[%emt 0:00:10]} 25.
Qxh8+ {[%emt 0:00:05]} Ke7 {[%emt 0:00:15]} 26. exd5 {[%emt 0:00:07]} Qa5 {
[%emt 0:00:41]} 27. Ne4 {[%emt 0:00:13]} Qxa2 {[%emt 0:00:11]} 28. Qf6+ {[%emt
0:00:02]} Kd7 {[%emt 0:00:12]} 29. Qxd6+ {[%emt 0:00:10]} Kc8 {[%emt 0:00:09]}
30. Rf1 {[%emt 0:00:06]} b6 {[%emt 0:00:18]} 31. Qxe5 {[%emt 0:00:15]} Qxb2 {
[%emt 0:00:18]} 32. Qxe8+ {[%emt 0:00:03]} Kb7 {[%emt 0:00:08]} 33. Qc6+ {
[%emt 0:00:06]} Ka6 {[%emt 0:00:06]} 34. Qa4+ {[%emt 0:00:06]} Kb7 {[%emt 0:00:
06]} 35. Rf7+ {[%emt 0:00:02]} Kb8 {[%emt 0:00:11]} 36. Qe8# {[%emt 0:00:02]}
1-0

[Event "16th EWICC 2015"]
[Site "Kutaisi"]
[Date "2015.06.02"]
[Round "8"]
[White "Khomeriki, Ketevan"]
[Black "Khomeriki, Nino"]
[Result "0-1"]
[ECO "C59"]
[WhiteElo "1861"]
[BlackElo "2228"]
[Annotator "Robot 11"]
[PlyCount "60"]
[EventDate "2015.??.??"]
[EventCountry "GEO"]
[TimeControl "900+10"]

1. e4 e5 {[%emt 0:00:48]} 2. Nf3 {[%emt 0:00:13]} Nc6 {[%emt 0:00:01]} 3. Bc4 {
[%emt 0:00:03]} Nf6 {[%emt 0:00:02]} 4. Ng5 {[%emt 0:00:02]} d5 {[%emt 0:00:01]
} 5. exd5 {[%emt 0:00:02]} Na5 {[%emt 0:00:01]} 6. Bb5+ {[%emt 0:00:02]} c6 {
[%emt 0:00:00]} 7. dxc6 {[%emt 0:00:02]} bxc6 {[%emt 0:00:01]} 8. Be2 {[%emt 0:
00:03]} h6 {[%emt 0:00:01]} 9. Nf3 {[%emt 0:00:02]} e4 {[%emt 0:00:01]} 10. Ne5
{[%emt 0:00:01]} Bc5 {[%emt 0:00:10]} 11. O-O {[%emt 0:00:14]} O-O {[%emt 0:00:
17]} 12. c3 {[%emt 0:00:22]} Qc7 {[%emt 0:00:59]} 13. d4 {[%emt 0:00:14]} exd3
{[%emt 0:00:01]} 14. Nxd3 {[%emt 0:00:03]} Bd6 {[%emt 0:00:01]} 15. g3 {[%emt
0:00:29]} Bh3 {[%emt 0:00:13]} 16. Re1 {[%emt 0:00:12]} Rad8 {[%emt 0:00:06]}
17. Qa4 {[%emt 0:00:23]} Rfe8 {[%emt 0:00:17]} 18. Qh4 {[%emt 0:01:09]} Bf5 {
[%emt 0:00:07]} 19. Nf4 {[%emt 0:01:49]} Kh7 {[%emt 0:05:03]} 20. Nh3 {[%emt 0:
00:15]} Bg4 {[%emt 0:02:20]} 21. Be3 {[%emt 0:00:54]} Qc8 {[%emt 0:01:22]} 22.
Bxg4 {[%emt 0:03:07]} Nxg4 {[%emt 0:00:07]} 23. Ng5+ {[%emt 0:00:35]} Kg8 {
[%emt 0:00:08]} 24. Nxf7 {[%emt 0:00:11]} Kxf7 {[%emt 0:01:19]} 25. Qh5+ {
[%emt 0:00:04]} Kg8 {[%emt 0:00:07]} 26. Qxa5 {[%emt 0:00:03]} Nxe3 {[%emt 0:
00:08]} 27. fxe3 {[%emt 0:00:32]} Qg4 {[%emt 0:00:23]} 28. Kg2 {[%emt 0:02:22]}
Rf8 {[%emt 0:01:01]} 29. Na3 {[%emt 0:01:10]} Bxg3 {[%emt 0:00:04]} 30. h3 {
[%emt 0:02:06]} Qf3+ 0-1

[Event "16th EWICC 2015"]
[Site "Kutaisi"]
[Date "2015.06.02"]
[Round "8"]
[White "Kostava, Elene"]
[Black "Petrenko, Svetlana"]
[Result "0-1"]
[ECO "D30"]
[WhiteElo "1691"]
[BlackElo "2207"]
[Annotator "Robot 11"]
[PlyCount "94"]
[EventDate "2015.??.??"]
[EventCountry "GEO"]
[TimeControl "900+10"]

1. d4 d5 2. c4 e6 3. Nf3 f5 4. Nc3 Nf6 5. Bg5 c6 6. e3 Be7 7. Bd3 O-O 8. O-O
Ne4 9. Bxe7 Qxe7 10. Ne5 Nd7 11. f4 Nxe5 12. fxe5 Bd7 13. Bxe4 dxe4 14. c5 Be8
15. b4 g5 16. a4 Bg6 17. g3 Qe8 18. a5 a6 19. Na4 Bh5 20. Qd2 Bf3 21. Nb6 Rd8
22. Nc4 Rd7 23. Nd6 Qg6 24. Ra2 h5 25. Kf2 Rh7 26. Rg1 h4 27. gxh4 Rxh4 28. Ke1
Rh7 29. Qf2 Kh8 30. Qg3 Rg8 31. h3 Qh5 32. Rh2 Rgg7 33. Kd2 Qh6 34. Ne8 Rg6 35.
Nf6 Re7 36. h4 g4 37. Kc3 Qxe3+ 38. Kc2 Qd3+ 39. Kc1 Qc3+ 40. Rc2 Qa3+ 41. Rb2
Qe3+ 42. Rd2 f4 43. Qh2 g3 44. Kc2 Rxf6 45. exf6 Rf7 46. Qh3 Rxf6 47. Rc1 Qa3
0-1

[Event "16th EWICC 2015"]
[Site "Kutaisi"]
[Date "2015.06.02"]
[Round "8"]
[White "Mammadova, Narmin"]
[Black "Vakhania, Alexandra"]
[Result "1-0"]
[ECO "B10"]
[WhiteElo "2117"]
[BlackElo "2130"]
[Annotator "Robot 11"]
[PlyCount "119"]
[EventDate "2015.??.??"]
[EventCountry "GEO"]
[TimeControl "900+10"]

1. e4 {[%emt 0:00:02]} c6 {[%emt 0:00:01]} 2. c4 {[%emt 0:00:01]} e6 {[%emt 0:
00:07]} 3. d4 {[%emt 0:00:57]} d5 {[%emt 0:00:01]} 4. cxd5 {[%emt 0:00:14]}
exd5 {[%emt 0:00:04]} 5. e5 {[%emt 0:00:28]} Bb4+ {[%emt 0:00:09]} 6. Nc3 {
[%emt 0:00:24]} Ne7 {[%emt 0:00:03]} 7. Bd3 {[%emt 0:00:12]} Bf5 {[%emt 0:00:
21]} 8. Nge2 {[%emt 0:00:40]} Nd7 {[%emt 0:00:24]} 9. O-O {[%emt 0:00:13]} Nf8
{[%emt 0:00:10]} 10. Ng3 {[%emt 0:01:39]} Bxd3 {[%emt 0:00:02]} 11. Qxd3 {
[%emt 0:00:01]} Ne6 {[%emt 0:00:02]} 12. Nce2 {[%emt 0:00:29]} c5 {[%emt 0:00:
33]} 13. Be3 {[%emt 0:02:25]} h5 {[%emt 0:03:08]} 14. dxc5 {[%emt 0:01:00]} Nc6
{[%emt 0:01:12]} 15. Rfd1 {[%emt 0:01:47]} Nxe5 {[%emt 0:00:44]} 16. Qb5+ {
[%emt 0:00:19]} Nc6 {[%emt 0:01:03]} 17. Qxb7 {[%emt 0:00:07]} Rc8 {[%emt 0:00:
15]} 18. Rxd5 {[%emt 0:00:35]} Qxd5 {[%emt 0:00:17]} 19. Qxc8+ {[%emt 0:00:01]}
Ncd8 {[%emt 0:00:13]} 20. Qb8 {[%emt 0:02:04]} Bxc5 {[%emt 0:00:43]} 21. Bxc5 {
[%emt 0:00:38]} Qxc5 {[%emt 0:00:24]} 22. Rc1 {[%emt 0:00:27]} Qd5 {[%emt 0:00:
39]} 23. Nc3 {[%emt 0:00:13]} Qg5 {[%emt 0:00:23]} 24. Qb5+ {[%emt 0:00:44]}
Qxb5 {[%emt 0:01:31]} 25. Nxb5 {[%emt 0:00:01]} a5 {[%emt 0:00:01]} 26. Nf5 {
[%emt 0:00:56]} g6 {[%emt 0:00:34]} 27. Ne3 {[%emt 0:00:34]} O-O {[%emt 0:01:
53]} 28. Nd6 {[%emt 0:00:58]} Nf4 {[%emt 0:00:02]} 29. Rc4 {[%emt 0:00:29]}
Nde6 {[%emt 0:00:14]} 30. Ra4 {[%emt 0:00:07]} Rd8 {[%emt 0:00:57]} 31. Nec4 {
[%emt 0:00:04]} Nd3 {[%emt 0:00:30]} 32. b3 {[%emt 0:00:54]} Nb2 {[%emt 0:00:
19]} 33. Nxb2 {[%emt 0:00:04]} Rxd6 {[%emt 0:00:01]} 34. g3 {[%emt 0:00:16]} h4
{[%emt 0:01:52]} 35. gxh4 {[%emt 0:00:28]} Rd2 {[%emt 0:00:43]} 36. Nc4 {[%emt
0:00:01]} Rc2 {[%emt 0:00:09]} 37. Kg2 {[%emt 0:00:21]} Nc5 {[%emt 0:00:29]}
38. Rxa5 {[%emt 0:00:01]} Nd3 {[%emt 0:00:01]} 39. Ra8+ {[%emt 0:00:11]} Kg7 {
[%emt 0:00:01]} 40. a4 {[%emt 0:00:18]} Rxf2+ {[%emt 0:00:02]} 41. Kg1 {[%emt
0:00:11]} Ra2 {[%emt 0:00:05]} 42. a5 {[%emt 0:00:06]} Nf4 {[%emt 0:00:12]} 43.
a6 {[%emt 0:00:05]} Nh3+ {[%emt 0:00:28]} 44. Kf1 {[%emt 0:00:07]} Rf2+ {[%emt
0:00:27]} 45. Ke1 {[%emt 0:00:01]} Rxh2 {[%emt 0:00:01]} 46. a7 {[%emt 0:00:01]
} Ra2 {[%emt 0:00:02]} 47. Nb6 {[%emt 0:00:01]} Nf4 {[%emt 0:00:09]} 48. Na4 {
[%emt 0:00:23]} Nd3+ {[%emt 0:00:58]} 49. Kf1 {[%emt 0:00:07]} Rf2+ {[%emt 0:
00:14]} 50. Kg1 {[%emt 0:00:01]} Rf5 {[%emt 0:00:03]} 51. Rb8 {[%emt 0:00:26]}
Ne5 {[%emt 0:00:08]} 52. a8=Q {[%emt 0:00:09]} Nf3+ {[%emt 0:00:02]} 53. Kf2 {
[%emt 0:00:07]} Nxh4+ {[%emt 0:00:02]} 54. Ke2 {[%emt 0:00:06]} Re5+ {[%emt 0:
00:04]} 55. Kd3 {[%emt 0:00:03]} Nf5 {[%emt 0:00:05]} 56. Rg8+ {[%emt 0:00:05]}
Kh6 {[%emt 0:00:07]} 57. Qf8+ {[%emt 0:00:28]} Kh5 {[%emt 0:00:16]} 58. Qxf7 {
[%emt 0:00:06]} Re3+ {[%emt 0:00:12]} 59. Kd2 {[%emt 0:00:02]} Rg3 {[%emt 0:00:
09]} 60. Qxf5+ {[%emt 0:00:23]} 1-0

[Event "16th EWICC 2015"]
[Site "Kutaisi"]
[Date "2015.06.02"]
[Round "8"]
[White "Mammadzada, Gunay"]
[Black "Tereladze, Sopiko"]
[Result "1-0"]
[ECO "C89"]
[WhiteElo "2336"]
[BlackElo "2128"]
[Annotator "Robot 11"]
[PlyCount "119"]
[EventDate "2015.??.??"]
[EventCountry "GEO"]
[TimeControl "900+10"]

1. e4 {[%emt 0:06:37]} e5 {[%emt 0:00:07]} 2. Nf3 {[%emt 0:00:05]} Nc6 {[%emt
0:00:01]} 3. Bb5 {[%emt 0:00:03]} a6 {[%emt 0:00:03]} 4. Ba4 {[%emt 0:00:01]}
Nf6 {[%emt 0:00:02]} 5. O-O {[%emt 0:00:01]} Be7 {[%emt 0:00:06]} 6. Re1 {
[%emt 0:00:03]} b5 {[%emt 0:00:05]} 7. Bb3 {[%emt 0:00:01]} O-O {[%emt 0:00:02]
} 8. c3 {[%emt 0:00:00]} d5 {[%emt 0:00:01]} 9. d4 {[%emt 0:00:05]} exd4 {
[%emt 0:00:20]} 10. e5 {[%emt 0:00:01]} Ne4 {[%emt 0:00:06]} 11. cxd4 {[%emt 0:
00:02]} Bf5 {[%emt 0:00:33]} 12. Nc3 {[%emt 0:00:02]} Nxc3 {[%emt 0:00:26]} 13.
bxc3 {[%emt 0:00:01]} Qd7 {[%emt 0:00:09]} 14. Bg5 {[%emt 0:00:06]} Ba3 {[%emt
0:00:01]} 15. Nh4 {[%emt 0:00:21]} Be6 {[%emt 0:03:21]} 16. Bc2 {[%emt 0:00:33]
} Ne7 {[%emt 0:00:57]} 17. f4 {[%emt 0:01:47]} h6 {[%emt 0:00:29]} 18. Qd3 {
[%emt 0:00:44]} Bf5 {[%emt 0:04:50]} 19. Nxf5 {[%emt 0:00:09]} Qxf5 {[%emt 0:
00:18]} 20. Qd2 {[%emt 0:00:45]} Qd7 {[%emt 0:00:58]} 21. Bxe7 {[%emt 0:01:40]}
Qxe7 {[%emt 0:01:05]} 22. Qd3 {[%emt 0:00:29]} f5 {[%emt 0:00:13]} 23. exf6 {
[%emt 0:01:17]} Qxf6 {[%emt 0:00:02]} 24. Re5 {[%emt 0:00:10]} g6 {[%emt 0:00:
54]} 25. Rae1 {[%emt 0:00:11]} Qg7 {[%emt 0:00:43]} 26. f5 {[%emt 0:00:42]}
Rxf5 {[%emt 0:00:16]} 27. Rxf5 {[%emt 0:00:08]} gxf5 {[%emt 0:00:00]} 28. Qxf5
{[%emt 0:00:26]} Rf8 {[%emt 0:00:12]} 29. Qxd5+ Kh8 30. Re6 {[%emt 0:00:31]}
Qg5 {[%emt 0:00:44]} 31. Qxg5 {[%emt 0:00:47]} hxg5 {[%emt 0:00:01]} 32. Rh6+ {
[%emt 0:00:04]} Kg8 {[%emt 0:00:13]} 33. Rg6+ {[%emt 0:00:32]} Kf7 {[%emt 0:00:
16]} 34. Rxg5 {[%emt 0:00:03]} Ke6 {[%emt 0:00:13]} 35. Rg6+ {[%emt 0:00:16]}
Kd5 {[%emt 0:00:04]} 36. Rxa6 {[%emt 0:00:42]} Bc1 {[%emt 0:00:20]} 37. Bb3+ {
[%emt 0:00:43]} Ke4 {[%emt 0:00:08]} 38. Re6+ {[%emt 0:00:12]} Kd3 {[%emt 0:00:
03]} 39. g4 {[%emt 0:00:04]} Be3+ {[%emt 0:00:54]} 40. Kg2 {[%emt 0:00:01]}
Rf2+ {[%emt 0:00:01]} 41. Kg3 {[%emt 0:00:03]} Rf1 {[%emt 0:00:08]} 42. h3 {
[%emt 0:00:57]} Bd2 {[%emt 0:00:25]} 43. d5 {[%emt 0:00:17]} Bxc3 {[%emt 0:00:
03]} 44. h4 {[%emt 0:00:14]} Rg1+ {[%emt 0:01:17]} 45. Kf4 {[%emt 0:00:10]}
Bd2+ {[%emt 0:00:10]} 46. Kf5 {[%emt 0:00:10]} Rf1+ {[%emt 0:00:10]} 47. Kg6 {
[%emt 0:00:00]} Rf4 {[%emt 0:00:05]} 48. Kh5 {[%emt 0:00:00]} Be3 {[%emt 0:00:
08]} 49. Re7 {[%emt 0:00:12]} Bb6 {[%emt 0:00:01]} 50. Re1 {[%emt 0:00:26]} Kd2
{[%emt 0:00:20]} 51. Rh1 {[%emt 0:00:07]} Ke3 {[%emt 0:00:03]} 52. g5 {[%emt 0:
00:03]} Rf2 {[%emt 0:00:04]} 53. Kg6 {[%emt 0:00:11]} Kf4 {[%emt 0:00:01]} 54.
h5 {[%emt 0:00:14]} Rg2 {[%emt 0:00:01]} 55. Rf1+ {[%emt 0:00:01]} Ke5 {[%emt
0:00:03]} 56. h6 {[%emt 0:00:06]} Be3 {[%emt 0:00:02]} 57. Rf5+ {[%emt 0:00:00]
} Kd6 {[%emt 0:00:01]} 58. h7 {[%emt 0:00:04]} Bd4 {[%emt 0:00:01]} 59. Rf6+ {
[%emt 0:00:18]} Bxf6 {[%emt 0:00:18]} 60. Kxf6 {[%emt 0:00:01]} 1-0

[Event "16th EWICC 2015"]
[Site "Kutaisi"]
[Date "2015.06.02"]
[Round "8"]
[White "Melashvili, Nino"]
[Black "Gognadze, Tsira"]
[Result "1-0"]
[ECO "A04"]
[WhiteElo "2173"]
[BlackElo "1144"]
[Annotator "Robot 11"]
[PlyCount "46"]
[EventDate "2015.??.??"]
[EventCountry "GEO"]
[TimeControl "900+10"]

1. Nf3 {[%emt 0:00:02]} e6 {[%emt 0:00:01]} 2. d4 {[%emt 0:00:03]} b6 {[%emt 0:
00:02]} 3. e4 {[%emt 0:00:07]} d5 {[%emt 0:00:04]} 4. exd5 {[%emt 0:00:29]}
exd5 {[%emt 0:00:05]} 5. Ne5 {[%emt 0:00:13]} Bb7 {[%emt 0:00:29]} 6. Bb5+ {
[%emt 0:00:12]} c6 {[%emt 0:00:25]} 7. Bd3 {[%emt 0:00:02]} Nf6 {[%emt 0:00:09]
} 8. Bg5 {[%emt 0:01:11]} Be7 {[%emt 0:00:04]} 9. Nd2 {[%emt 0:00:01]} O-O {
[%emt 0:00:15]} 10. O-O {[%emt 0:02:10]} Re8 {[%emt 0:00:09]} 11. Qf3 {[%emt 0:
00:15]} h6 {[%emt 0:01:28]} 12. Bh4 {[%emt 0:05:45]} Nbd7 {[%emt 0:00:12]} 13.
Rae1 {[%emt 0:00:02]} Qc7 {[%emt 0:00:41]} 14. g4 {[%emt 0:03:21]} c5 {[%emt 0:
06:24]} 15. c3 {[%emt 0:00:13]} Nxe5 {[%emt 0:03:04]} 16. dxe5 {[%emt 0:00:02]}
d4 {[%emt 0:00:53]} 17. Qh3 {[%emt 0:00:55]} dxc3 {[%emt 0:00:41]} 18. exf6 {
[%emt 0:00:30]} cxd2 {[%emt 0:01:27]} 19. Rxe7 {[%emt 0:00:02]} Qd6 {[%emt 0:
00:50]} 20. Qe3 {[%emt 0:00:54]} Rxe7 {[%emt 0:00:40]} 21. fxe7 {[%emt 0:00:03]
} Qc6 {[%emt 0:00:14]} 22. f3 {[%emt 0:00:04]} Re8 {[%emt 0:00:04]} 23. Qxd2 {
[%emt 0:01:01]} Bc8 1-0